[Event "FRA-ch Youth U12 2018"]
[Site "Agen"]
[Date "2018.04.21"]
[Round "8"]
[White "Gagua, Nani"]
[Black "Chachiachvili, Salome"]
[Result "1-0"]
[ECO "B01"]
[WhiteElo "1335"]
[BlackElo "1530"]
[Annotator "NA"]
[PlyCount "133"]
[EventDate "2018.??.??"]
[EventType "swiss"]
[EventCountry "FRA"]
[SourceTitle "playchess.com"]
[Source "ChessBase"]
[SourceQuality "1"]
[TimeControl "5400+30"]

1. e4 {[%emt 0:00:00]} d5 {[%emt 0:00:08]} 2. exd5 {[%emt 0:00:00]} Qxd5 {[%emt 0:00:16]} 3. Nc3 {[%emt 0:00:00]} Qd8 {[%emt 0:00:35]} 4. Nf3 {[%emt 0:00:00]} Nf6 {[%emt 0:00:29]} 5. Bc4 {[%emt 0:00:15]} e6 {[%emt 0:00:11]} 6. d3 {[%emt 0:00:20]} Be7 {[%emt 0:00:35]} 7. Bf4 {[%emt 0:00:11]} a6 {[%emt 0:01:02]} 8. a4 {[%emt 0:01:17]} Nc6 {[%emt 0:01:13]} 9. O-O O-O {[%emt 0:03:48]} 10. Re1 {[%emt 0:03:39]} b6 {[%emt 0:02:47]} 11. Ng5 {[%emt 0:09:57]} h6 {[%emt 0:02:01]} 12. Nge4 {[%emt 0:02:39]} Nd4 {[%emt 0:13:04]} 13. Nxf6+ {[%emt 0:04:10]} Bxf6 {[%emt 0:00:56]} 14. Ne4 {[%emt 0:00:21]} Be7 {[%emt 0:01:56]} 15. c3 {[%emt 0:02:19]} Nf5 {[%emt 0:02:37]} 16. Qf3 {[%emt 0:02:28]} Rb8 {[%emt 0:14:39]} 17. Qg4 {[%emt 0:05:41]} Kh7 {[%emt 0:04:24]} 18. d4 {[%emt 0:16:34]} Nd6 {[%emt 0:21:47]} 19. Nxd6 {[%emt 0:02:44]} Bxd6 {[%emt 0:00:49]} 20. Bd3+ {[%emt 0:03:49]} Kh8 {[%emt 0:03:00]} 21. Be5 {[%emt 0:04:36]} Bxe5 {[%emt 0:01:03]} 22. Rxe5 {[%emt 0:00:03]} Qf6 {[%emt 0:00:26]} 23. Qe4 {[%emt 0:01:46]} g6 {[%emt 0:00:23]} 24. Qe3 {[%emt 0:06:22]} Qg7 {[%emt 0:00:28]} 25. Qg3 {[%emt 0:05:26]} Bb7 {[%emt 0:02:27]} 26. Rae1 {[%emt 0:01:51]} a5 {[%emt 0:02:23]} 27. Qf4 {[%emt 0:02:54]} g5 {[%emt 0:08:06]} 28. Qg4 {[%emt 0:00:23]} f6 {[%emt 0:01:38]} 29. R5e3 {[%emt 0:01:15]} Bc8 {[%emt 0:00:38]} 30. Qh5 {[%emt 0:01:16]} f5 {[%emt 0:01:41]} 31. Bc4 {[%emt 0:01:08]} Kh7 {[%emt 0:04:11]} 32. Bxe6 {[%emt 0:00:09]} Bxe6 {[%emt 0:00:01]} 33. Rxe6 {[%emt 0:00:02]} Rf7 {[%emt 0:01:45]} 34. Rxh6+ {[%emt 0:00:26]} Qxh6 {[%emt 0:00:03]} 35. Qxf7+ {[%emt 0:00:10]} Qg7 {[%emt 0:00:04]} 36. Qxf5+ {[%emt 0:00:36]} Kg8 {[%emt 0:00:18]} 37. Qe6+ {[%emt 0:00:27]} Kh8 {[%emt 0:00:49]} 38. Qe5 {[%emt 0:00:06]} Qxe5 {[%emt 0:00:05]} 39. Rxe5 {[%emt 0:00:07]} Rg8 {[%emt 0:00:02]} 40. Re7 {[%emt 0:00:09]} Rc8 {[%emt 0:00:05]} 41. f3 {[%emt 0:00:12]} c5 {[%emt 0:00:23]} 42. dxc5 {[%emt 0:00:40]} Rxc5 {[%emt 0:00:08]} 43. Re6 {[%emt 0:00:15]} Rc4 {[%emt 0:00:18]} 44. Rxb6 {[%emt 0:00:19]} Rxa4 {[%emt 0:00:02]} 45. Kf2 {[%emt 0:01:01]} Kh7 {[%emt 0:00:15]} 46. Ke3 {[%emt 0:00:13]} Ra2 {[%emt 0:00:22]} 47. Kd3 {[%emt 0:00:31]} Ra1 {[%emt 0:00:00]} 48. Ke3 {[%emt 0:00:53]} Rh1 {[%emt 0:00:21]} 49. Rb5 {[%emt 0:01:02]} Rxh2 {[%emt 0:00:12]} 50. Rxg5 {[%emt 0:00:17]} a4 {[%emt 0:00:01]} 51. Rg4 {[%emt 0:00:24]} Kh6 {[%emt 0:00:11]} 52. Kf2 {[%emt 0:00:03]} Rh1 {[%emt 0:00:10]} 53. Rxa4 {[%emt 0:00:06]} Rb1 {[%emt 0:00:06]} 54. Ra6+ {[%emt 0:00:21]} Kg7 {[%emt 0:00:05]} 55. Rb6 {[%emt 0:00:04]} Rc1 {[%emt 0:00:13]} 56. g4 {[%emt 0:00:15]} Rc2+ {[%emt 0:00:14]} 57. Kg3 {[%emt 0:00:05]} Rc1 {[%emt 0:00:06]} 58. Kf4 {[%emt 0:00:05]} Rc2 {[%emt 0:00:07]} 59. g5 {[%emt 0:00:08]} Rd2 {[%emt 0:00:16]} 60. Kg4 {[%emt 0:00:14]} Rg2+ {[%emt 0:00:07]} 61. Kf5 {[%emt 0:00:05]} Rf2 {[%emt 0:00:10]} 62. f4 {[%emt 0:00:04]} Rg2 {[%emt 0:00:07]} 63. Rb7+ {[%emt 0:00:07]} Kg8 {[%emt 0:00:17]} 64. Kf6 {[%emt 0:00:09]} Re2 {[%emt 0:00:17]} 65. Rb8+ {[%emt 0:00:08]} Kh7 {[%emt 0:00:16]} 66. g6+ {[%emt 0:00:09]} Kh6 {[%emt 0:00:10]} 67. Rh8# {[%emt 0:00:05]} 1-0

[Event "FRA-ch Youth U12 2018"]
[Site "Agen"]
[Date "2018.04.21"]
[Round "8"]
[White "Mirabel, Mathilde"]
[Black "Milojevic-Daim, Lola-Shaina"]
[Result "0-1"]
[ECO "B21"]
[WhiteElo "1212"]
[BlackElo "1316"]
[Annotator "NA"]
[PlyCount "44"]
[EventDate "2018.??.??"]
[EventType "swiss"]
[EventCountry "FRA"]
[SourceTitle "playchess.com"]
[Source "ChessBase"]
[SourceQuality "1"]
[TimeControl "5400+30"]

1. e4 {[%emt 0:00:00]} c5 {[%emt 0:00:17]} 2. d4 {[%emt 0:00:00]} cxd4 {[%emt 0:00:21]} 3. c3 {[%emt 0:00:07]} d5 {[%emt 0:03:19]} 4. exd5 {[%emt 0:00:11]} Qxd5 {[%emt 0:01:02]} 5. cxd4 {[%emt 0:00:10]} Nc6 {[%emt 0:00:38]} 6. Nf3 {[%emt 0:00:19]} Bg4 {[%emt 0:00:53]} 7. Nc3 {[%emt 0:02:11]} Qd7 {[%emt 0:05:40]} 8. d5 {[%emt 0:04:00]} Bxf3 {[%emt 0:07:15]} 9. gxf3 {[%emt 0:09:23]} O-O-O {[%emt 0:03:49]} 10. dxc6 {[%emt 0:03:32]} Qxc6 {[%emt 0:00:27]} 11. Bh3+ {[%emt 0:04:17]} e6 {[%emt 0:01:11]} 12. Qe2 {[%emt 0:03:45]} Bb4 {[%emt 0:05:34]} 13. Bd2 {[%emt 0:03:14]} Nf6 {[%emt 0:01:51]} 14. Rc1 {[%emt 0:05:55]} Kb8 {[%emt 0:07:04]} 15. Bg5 {[%emt 0:07:21]} Rd5 {[%emt 0:06:40]} 16. Bf4+ {[%emt 0:14:53]} Ka8 {[%emt 0:02:26]} 17. a3 {[%emt 0:01:49]} Nh5 {[%emt 0:14:52]} 18. Qe4 {[%emt 0:09:13]} Bxc3+ {[%emt 0:05:34]} 19. Rxc3 {[%emt 0:00:20]} Qd7 {[%emt 0:00:14]} 20. Ke2 {[%emt 0:04:44]} Rd8 {[%emt 0:03:37]} 21. Qe3 {[%emt 0:10:53]} Qb5+ {[%emt 0:04:17]} 22. Rd3 {[%emt 0:05:20]} Rxd3 {[%emt 0:00:27]} 0-1

[Event "FRA-ch Youth U12 2018"]
[Site "Agen"]
[Date "2018.04.22"]
[Round "9"]
[White "Trabet, Mathis"]
[Black "Mekhane, Adam"]
[Result "1/2-1/2"]
[ECO "A22"]
[WhiteElo "1909"]
[BlackElo "1907"]
[Annotator "NA"]
[PlyCount "87"]
[EventDate "2018.??.??"]
[EventType "swiss"]
[EventCountry "FRA"]
[SourceTitle "playchess.com"]
[Source "ChessBase"]
[SourceQuality "1"]
[TimeControl "5400+30"]

1. c4 {[%emt 0:00:00]} e5 {[%emt 0:00:14]} 2. Nc3 {[%emt 0:00:00]} Nf6 {[%emt 0:00:07]} 3. g3 {[%emt 0:00:39]} d5 {[%emt 0:00:22]} 4. cxd5 {[%emt 0:00:32]} Nxd5 {[%emt 0:00:02]} 5. Bg2 {[%emt 0:00:22]} Nb6 {[%emt 0:00:34]} 6. Nf3 {[%emt 0:00:31]} Nc6 {[%emt 0:00:03]} 7. O-O {[%emt 0:00:26]} Be7 {[%emt 0:01:18]} 8. b3 {[%emt 0:01:10]} O-O {[%emt 0:01:57]} 9. Bb2 {[%emt 0:01:08]} Re8 {[%emt 0:02:30] A29: English Opening: Four Knights Variation with 4 g3} 10. Rc1 {[%emt 0:01:24]} Bg4 {[%emt 0:05:28]} (10... Bf8 11. d3 Bg4 12. h3 Bh5 13. Ne4 Rb8 14. Nc5 Bxc5 15. Rxc5 f6 16. a3 Qd7 17. b4 Bf7 18. Qc2 Rbc8 19. Rc1 a6 20. Nd2 Nd5 {1-0 (52) Eljanov,P (2711)-Ganguly,S (2650) Riadh 2017}) 11. Nb5 $146 {[%emt 0:18:58]} (11. Ne4 $11) ({Predecessor:} 11. d3 Qd7 12. Ne4 f6 13. Nc5 Bxc5 14. Rxc5 Bh3 15. Bxh3 Qxh3 16. b4 a6 17. a4 {½-½ (63) Shetty,A (2403)-Gurevich,D (2471) Saint Louis 2017}) 11... a6 {[%emt 0:16:23]} 12. Nc3 {[%emt 0:12:39]} Bf8 {[%emt 0:06:48]} 13. h3 {[%emt 0:00:32]} Bh5 {[%emt 0:07:11]} 14. d3 {[%emt 0:04:15]} Nd4 {[%emt 0:05:37]} 15. g4 {[%emt 0:05:55]} Bg6 {[%emt 0:02:22]} 16. Nxd4 {[%emt 0:04:49]} exd4 {[%emt 0:01:36]} 17. Ne4 {[%emt 0:01:03]} Bxe4 {[%emt 0:09:16]} 18. Bxe4 {[%emt 0:00:26]} Qh4 {[%emt 0:05:50]} 19. Kg2 {[%emt 0:06:47]} f5 {[%emt 0:04:37]} 20. Bf3 {[%emt 0:06:29]} Bd6 {[%emt 0:03:27]} 21. Rh1 {[%emt 0:01:54]} Rad8 {[%emt 0:04:10]} 22. Bxd4 {[%emt 0:05:46]} Nd7 {[%emt 0:13:19]} 23. Qc2 {[%emt 0:02:40]} Ne5 {[%emt 0:02:16]} 24. Bxe5 {[%emt 0:03:19]} Rxe5 {[%emt 0:00:41]} 25. Qc4+ {[%emt 0:03:11]} Kh8 {[%emt 0:00:40]} 26. e3 {[%emt 0:00:10]} (26. d4 $14 Ree8 27. Bxb7) 26... Rxe3 {[%emt 0:02:34]} 27. gxf5 {[%emt 0:02:41]} Bf4 {[%emt 0:01:12]} 28. Bg4 {[%emt 0:03:05]} Rg3+ {[%emt 0:00:54]} 29. fxg3 {[%emt 0:02:09]} Qxg3+ {[%emt 0:00:01]} 30. Kf1 {[%emt 0:00:09]} Be3 {[%emt 0:01:47]} 31. Rc2 {[%emt 0:01:03]} Rd4 {[%emt 0:00:28]} 32. Qxc7 {[%emt 0:04:21]} Rf4+ {[%emt 0:00:41]} 33. Ke2 {[%emt 0:02:22]} Rf2+ {[%emt 0:00:41]} 34. Kd1 $2 {[%emt 0:00:01]} ({White has to play} 34. Ke1 $18 {[%cal Rc7d8]} Bd2+ 35. Kd1 Qxc7 36. Rxc7) 34... Rd2+ {[%emt 0:00:26]} 35. Rxd2 {[%emt 0:00:01]} Qxc7 {[%emt 0:00:11]} 36. Rc2 {[%emt 0:00:05]} Qd8 {[%emt 0:01:21]} 37. Ke2 {[%emt 0:00:43]} Bc5 {[%emt 0:00:22]} 38. Rf1 {[%emt 0:01:06]} Qd4 {[%emt 0:01:00]} 39. Rf3 {[%emt 0:01:01]} Qe5+ {[%emt 0:00:40]} 40. Kf1 {[%emt 0:02:17]} Qa1+ {[%emt 0:00:02]} 41. Ke2 {[%emt 0:00:13]} Qe5+ {[%emt 0:00:07]} 42. Kf1 $11 {[%emt 0:00:42]} Qa1+ {[%emt 0:00:57]} 43. Ke2 {[%emt 0:00:09]} Qd4 44. Kd1 1/2-1/2

[Event "FRA-ch Youth U12 2018"]
[Site "Agen"]
[Date "2018.04.22"]
[Round "9"]
[White "Gherghinoiu, Lucas"]
[Black "Morais, Thomas"]
[Result "1-0"]
[ECO "B43"]
[WhiteElo "1901"]
[BlackElo "1706"]
[Annotator "NA RC"]
[PlyCount "65"]
[EventDate "2018.??.??"]
[EventType "swiss"]
[EventCountry "FRA"]
[SourceTitle "playchess.com"]
[Source "ChessBase"]
[SourceQuality "1"]
[TimeControl "5400+30"]

1. e4 {[%emt 0:00:00]} c5 {[%emt 0:00:06]} 2. Nf3 {[%emt 0:00:00]} e6 {[%emt 0:00:07]} 3. d4 {[%emt 0:00:00]} cxd4 {[%emt 0:00:09]} 4. Nxd4 {[%emt 0:00:00]} a6 {[%emt 0:00:08]} 5. Nc3 {[%emt 0:00:00]} Qc7 {[%emt 0:00:11]} 6. Bd3 {[%emt 0:00:18]} Nf6 {[%emt 0:02:35]} 7. O-O {[%emt 0:01:33]} Nc6 {[%emt 0:01:25]} 8. Nxc6 {[%emt 0:01:32]} bxc6 {[%emt 0:01:26]} 9. Qe2 {[%emt 0:02:30]} d5 {[%emt 0:12:50]} 10. e5 {[%emt 0:10:21] B46: Sicilian: Taimanov: 5 Nc3 a6} (10. Bg5 Bb7 11. f4 h6 12. Bh4 Be7 13. Bg3 O-O 14. e5 Ne8 15. f5 exf5 16. Bxf5 Qb6+ 17. Kh1 g6 {1-0 (34) Wei,Y (2740)-Ivanchuk,V (2732) Hoogeveen 2017}) 10... Nd7 {[%emt 0:01:29]} 11. f4 {[%emt 0:05:37]} g6 {[%emt 0:06:33] LiveBook: 3 Games} 12. Kh1 {[%emt 0:05:41]} Bg7 $146 {[%emt 0:03:01]} ({Predecessor:} 12... Bb7 13. b3 c5 14. Na4 Nb6 15. Nxb6 Qxb6 16. c4 d4 17. Be4 Be7 {0-1 (29) Grigorjev,I (2254)-Ulko,J (2467) St Petersburg 2015}) 13. Bd2 {[%emt 0:18:23]} O-O {[%emt 0:04:53]} 14. Rf3 {[%emt 0:07:07]} c5 {[%emt 0:04:40]} 15. b3 {[%emt 0:02:51]} Bb7 {[%emt 0:07:48]} 16. Rh3 {[%emt 0:07:37]} Rfd8 {[%emt 0:05:47]} 17. Rf1 {[%emt 0:03:18]} Nf8 {[%emt 0:07:49]} 18. Qe1 {[%emt 0:07:48]} Rac8 {[%emt 0:06:04]} 19. Na4 {[%emt 0:03:22]} Qc6 $14 {[%emt 0:14:55]} 20. Ba5 {[%emt 0:04:25]} Re8 {[%emt 0:00:43]} 21. Nb6 {[%emt 0:00:52]} Rb8 {[%emt 0:00:31]} 22. Qe2 {[%emt 0:01:10]} Nd7 {[%emt 0:02:38]} 23. Nxd7 {[%emt 0:02:52]} Qxd7 {[%emt 0:00:08]} 24. Qf2 {[%emt 0:00:49]} c4 {[%emt 0:02:58]} 25. Be2 {[%emt 0:02:25]} cxb3 26. axb3 {[%emt 0:00:58]} Qc6 {[%emt 0:02:24]} 27. Bd3 {[%emt 0:00:57]} h6 {[%emt 0:02:00]} 28. Bd2 {[%emt 0:00:54]} Kh7 {[%emt 0:05:38]} 29. f5 {[%emt 0:06:59]} Qd7 {[%emt 0:03:01]} 30. f6 {[%emt 0:01:53]} Bf8 {[%emt 0:03:01]} 31. Bxh6 {[%emt 0:02:05]} d4 {[%emt 0:00:31]} 32. Bg7+ {[%emt 0:00:25]} Kg8 {[%emt 0:00:16]} 33. Rh8# {[%emt 0:00:06]} 1-0

[Event "FRA-ch Youth U12 2018"]
[Site "Agen"]
[Date "2018.04.22"]
[Round "9"]
[White "Strasser, Rouben"]
[Black "Patole, Noam"]
[Result "0-1"]
[ECO "C71"]
[WhiteElo "1681"]
[BlackElo "1903"]
[Annotator "NA RC"]
[PlyCount "86"]
[EventDate "2018.??.??"]
[EventType "swiss"]
[EventCountry "FRA"]
[SourceTitle "playchess.com"]
[Source "ChessBase"]
[SourceQuality "1"]
[TimeControl "5400+30"]

1. e4 {[%emt 0:00:00]} e5 {[%emt 0:03:36]} 2. Nf3 {[%emt 0:00:00]} Nc6 {[%emt 0:00:49]} 3. Bb5 {[%emt 0:00:00]} a6 {[%emt 0:01:11]} 4. Ba4 {[%emt 0:00:00]} d6 {[%emt 0:00:51]} 5. d4 {[%emt 0:00:56]} b5 {[%emt 0:00:19]} 6. Bb3 {[%emt 0:00:08]} Nxd4 {[%emt 0:00:08]} 7. Nxd4 {[%emt 0:00:08]} exd4 {[%emt 0:00:07]} 8. Qxd4 {[%emt 0:00:09]} c5 {[%emt 0:00:11] C71: Ruy Lopez: Deferred Steinitz Variation, sidelines} 9. Qd5 {[%emt 0:01:15]} Be6 {[%emt 0:00:13]} 10. Qc6+ {[%emt 0:00:09]} Bd7 {[%emt 0:00:06]} 11. Qd5 {[%emt 0:08:33]} c4 {[%emt 0:00:20]} 12. Bxc4 {[%emt 0:01:33]} bxc4 {[%emt 0:00:10]} 13. Qxc4 {[%emt 0:01:26]} Be7 {[%emt 0:03:21]} 14. Nc3 {[%emt 0:04:27]} Nf6 {[%emt 0:02:19]} 15. O-O {[%emt 0:01:49]} (15. Bf4 O-O 16. O-O-O {0-1 (27) Garma,C (2322)-Demchenko,A (2611) Quezon City 2014}) 15... O-O {[%emt 0:01:28]} 16. Bf4 {[%emt 0:07:58]} Qb6 $146 {[%emt 0:04:24]} 17. b3 {[%emt 0:10:42]} Rfc8 {[%emt 0:00:38]} 18. Qd3 {[%emt 0:00:32]} Qc5 {[%emt 0:02:03]} 19. Bd2 {[%emt 0:05:03]} Bd8 {[%emt 0:03:00]} 20. Rac1 {[%emt 0:04:33]} Ba5 {[%emt 0:02:34]} 21. Nd5 {[%emt 0:02:55]} Nxd5 {[%emt 0:00:12]} 22. exd5 {[%emt 0:00:50]} Bf5 {[%emt 0:00:26]} 23. Qxf5 {[%emt 0:09:14]} Bxd2 {[%emt 0:00:17]} 24. Rcd1 {[%emt 0:01:02]} Qxc2 {[%emt 0:00:09]} 25. Qd7 {[%emt 0:01:04]} Rd8 {[%emt 0:01:16]} 26. Qa4 {[%emt 0:00:37]} Re8 {[%emt 0:00:36]} 27. Qd7 {[%emt 0:01:42]} Re2 {[%emt 0:00:34]} 28. Qxd6 {[%emt 0:01:54] [#]} Rxf2 $1 {[%emt 0:00:44]} 29. Qd7 {[%emt 0:04:18]} Be3 {[%emt 0:00:32]} 30. Kh1 {[%emt 0:03:16]} h6 {[%emt 0:05:56]} 31. Qh3 {[%emt 0:01:55]} Bf4 {[%emt 0:00:51]} 32. Qh4 {[%emt 0:08:35]} Rxf1+ {[%emt 0:00:52]} 33. Rxf1 {[%emt 0:00:08]} Bg5 {[%emt 0:00:20]} 34. Qd4 {[%emt 0:05:04]} Qe2 {[%emt 0:00:40]} 35. Rg1 {[%emt 0:09:43]} Re8 {[%emt 0:00:42]} 36. Qa4 {[%emt 0:00:32]} Qb5 {[%emt 0:00:29]} 37. Qa3 {[%emt 0:02:37]} Rd8 {[%emt 0:01:21]} 38. d6 {[%emt 0:02:57]} Bf4 {[%emt 0:00:10]} 39. Rd1 {[%emt 0:00:43]} Qe2 {[%emt 0:00:06]} 40. Rg1 {[%emt 0:00:42]} Rxd6 $19 {[%emt 0:00:35]} 41. Qa4 {[%emt 0:00:26]} g5 {[%emt 0:01:01]} 42. h4 {[%emt 0:00:32]} Rd1 {[%emt 0:00:13]} 43. Qa5 {[%emt 0:00:52]} Qg4 {[%emt 0:00:27]} 0-1

[Event "FRA-ch Youth U12 2018"]
[Site "Agen"]
[Date "2018.04.22"]
[Round "9"]
[White "Berezovsky, Fiorina"]
[Black "Costa, My-Lan"]
[Result "0-1"]
[ECO "C56"]
[WhiteElo "1678"]
[BlackElo "1360"]
[Annotator "NA RC"]
[PlyCount "98"]
[EventDate "2018.??.??"]
[EventType "swiss"]
[EventCountry "FRA"]
[SourceTitle "playchess.com"]
[Source "ChessBase"]
[SourceQuality "1"]
[TimeControl "5400+30"]

1. e4 {[%emt 0:00:00]} e5 {[%emt 0:00:05]} 2. Nf3 {[%emt 0:00:00]} Nc6 {[%emt 0:00:06]} 3. Bc4 {[%emt 0:00:30]} Nf6 {[%emt 0:00:14]} 4. d4 {[%emt 0:00:33]} exd4 {[%emt 0:00:23]} 5. O-O {[%emt 0:00:25]} Nxe4 {[%emt 0:04:12]} 6. Re1 {[%emt 0:01:38]} d5 {[%emt 0:00:21]} 7. Bxd5 {[%emt 0:00:26]} Qxd5 {[%emt 0:00:14]} 8. Nc3 {[%emt 0:00:30]} Qd8 {[%emt 0:00:12]} 9. Nxe4 {[%emt 0:01:14]} Be7 {[%emt 0:00:35]} 10. Bg5 {[%emt 0:01:52]} Be6 {[%emt 0:05:32]} 11. Bxe7 {[%emt 0:04:29]} Qxe7 {[%emt 0:02:34]} 12. Nxd4 {[%emt 0:04:17]} O-O {[%emt 0:05:43]} 13. Nxe6 {[%emt 0:04:47]} fxe6 {[%emt 0:01:39]} 14. Qg4 {[%emt 0:03:40]} Ne5 {[%emt 0:03:53]} 15. Qg3 {[%emt 0:02:53]} Ng6 {[%emt 0:01:49]} 16. Ng5 {[%emt 0:07:58]} Nf4 {[%emt 0:01:35]} 17. Qg4 {[%emt 0:05:55]} e5 {[%emt 0:07:35]} 18. g3 {[%emt 0:05:42]} Qxg5 {[%emt 0:01:28]} 19. Qxg5 {[%emt 0:04:23]} Nh3+ {[%emt 0:00:10]} 20. Kg2 {[%emt 0:00:17]} Nxg5 {[%emt 0:00:06]} 21. Rxe5 {[%emt 0:00:09]} Nf3 {[%emt 0:01:21]} 22. Re7 {[%emt 0:00:16]} Nd4 {[%emt 0:00:50]} 23. Rxc7 {[%emt 0:01:33]} Rf7 {[%emt 0:01:24]} 24. Rxf7 {[%emt 0:01:15]} Kxf7 {[%emt 0:00:08]} 25. c3 {[%emt 0:00:17]} Nc6 {[%emt 0:00:23]} 26. Rd1 {[%emt 0:00:28]} Ke6 {[%emt 0:00:50]} 27. Re1+ {[%emt 0:00:22]} Kf6 {[%emt 0:00:44]} 28. Rd1 {[%emt 0:00:33]} Rd8 {[%emt 0:00:39]} 29. Rxd8 {[%emt 0:01:08]} Nxd8 {[%emt 0:00:07]} 30. Kf3 {[%emt 0:00:17]} Ne6 {[%emt 0:00:26]} 31. Ke4 {[%emt 0:01:19]} Nc5+ {[%emt 0:00:57]} 32. Kd4 {[%emt 0:00:34]} b6 {[%emt 0:00:51]} 33. b4 {[%emt 0:01:04]} Nd7 {[%emt 0:04:03]} 34. Kd5 {[%emt 0:02:44]} Ne5 {[%emt 0:00:59]} 35. f4 {[%emt 0:01:24]} Nf3 {[%emt 0:00:33]} 36. Kc6 {[%emt 0:00:33]} Nxh2 {[%emt 0:00:08]} 37. Kb7 {[%emt 0:00:10]} Nf1 {[%emt 0:00:25]} 38. Kxa7 {[%emt 0:00:09]} Nxg3 {[%emt 0:00:19]} 39. Kxb6 {[%emt 0:00:04]} h5 {[%emt 0:00:20]} 40. c4 {[%emt 0:00:37]} h4 {[%emt 0:00:12]} 41. c5 {[%emt 0:00:19]} Ne4 {[%emt 0:02:45]} 42. c6 {[%emt 0:02:32]} h3 {[%emt 0:00:58]} 43. c7 {[%emt 0:00:36]} Nd6 {[%emt 0:00:13]} 44. Kc6 {[%emt 0:00:42]} Nc8 {[%emt 0:00:23]} 45. Kd7 {[%emt 0:00:16]} Ne7 {[%emt 0:00:25]} 46. b5 {[%emt 0:00:39]} h2 {[%emt 0:00:11]} 47. b6 {[%emt 0:01:00]} h1=Q {[%emt 0:00:12]} 48. c8=Q {[%emt 0:00:39]} Nxc8 {[%emt 0:00:13]} 49. Kxc8 {[%emt 0:00:07]} Qc6+ {[%emt 0:00:15]} 0-1

[Event "FRA-ch Youth U12 2018"]
[Site "Agen"]
[Date "2018.04.22"]
[Round "9"]
[White "Cornileau, Juliette"]
[Black "Micheli, Elora"]
[Result "0-1"]
[ECO "B23"]
[WhiteElo "1654"]
[BlackElo "1438"]
[Annotator "NA RC"]
[PlyCount "152"]
[EventDate "2018.??.??"]
[EventType "swiss"]
[EventCountry "FRA"]
[SourceTitle "playchess.com"]
[Source "ChessBase"]
[SourceQuality "1"]
[TimeControl "5400+30"]

1. e4 {[%emt 0:00:00]} c5 {[%emt 0:00:10]} 2. Nc3 {[%emt 0:00:00]} e6 {[%emt 0:00:12]} 3. g3 {[%emt 0:00:00]} Nf6 {[%emt 0:00:31]} 4. Bg2 {[%emt 0:00:06]} Be7 {[%emt 0:00:23]} 5. f4 {[%emt 0:01:11]} d5 {[%emt 0:00:24]} 6. d3 {[%emt 0:00:50]} Nc6 {[%emt 0:01:21]} 7. Nf3 {[%emt 0:00:40]} dxe4 {[%emt 0:04:50]} 8. Nxe4 {[%emt 0:01:53]} Nxe4 {[%emt 0:00:27]} 9. dxe4 {[%emt 0:00:06]} Qxd1+ {[%emt 0:00:28]} 10. Kxd1 {[%emt 0:00:05]} b6 {[%emt 0:00:25]} 11. b3 {[%emt 0:02:32]} Bb7 {[%emt 0:02:15]} 12. Ke2 {[%emt 0:01:34]} Nb4 {[%emt 0:02:29]} 13. Ne1 {[%emt 0:00:30]} f5 {[%emt 0:00:44]} 14. a3 {[%emt 0:00:46]} Nc6 {[%emt 0:01:23]} 15. Bb2 {[%emt 0:02:49]} Kf7 {[%emt 0:02:33]} 16. Nd3 {[%emt 0:01:12]} fxe4 {[%emt 0:00:47]} 17. Nf2 {[%emt 0:02:20]} Bf6 {[%emt 0:01:47]} 18. c3 {[%emt 0:02:21]} Na5 {[%emt 0:01:30]} 19. Nxe4 {[%emt 0:03:05]} Ke7 {[%emt 0:03:07]} 20. b4 {[%emt 0:06:16]} cxb4 {[%emt 0:01:31]} 21. axb4 {[%emt 0:01:02]} Nc4 {[%emt 0:01:13]} 22. Ba3 {[%emt 0:05:54]} Bxc3 {[%emt 0:01:39]} 23. Rac1 {[%emt 0:05:12]} Nxa3 {[%emt 0:03:24]} 24. Rxc3 {[%emt 0:00:32]} Nb5 {[%emt 0:00:57]} 25. Rd3 {[%emt 0:01:07]} Rac8 {[%emt 0:02:42]} 26. Rhd1 {[%emt 0:02:15]} Bxe4 {[%emt 0:01:54]} 27. Rd7+ {[%emt 0:03:54]} Kf6 {[%emt 0:01:22]} 28. Bxe4 {[%emt 0:00:38]} Nc3+ {[%emt 0:00:19]} 29. Ke3 {[%emt 0:00:11]} Nxd1+ {[%emt 0:00:20]} 30. Rxd1 {[%emt 0:00:02]} Rc3+ {[%emt 0:00:54]} 31. Ke2 {[%emt 0:00:52]} Rb3 {[%emt 0:00:42]} 32. Rd4 {[%emt 0:00:57]} Rb2+ {[%emt 0:01:00]} 33. Kd3 {[%emt 0:00:48]} Rxh2 {[%emt 0:00:26]} 34. Rd7 {[%emt 0:00:25]} Rh3 {[%emt 0:00:36]} 35. Rxa7 {[%emt 0:00:12]} Rxg3+ {[%emt 0:00:19]} 36. Kc4 {[%emt 0:00:32]} Rg4 {[%emt 0:01:33]} 37. Kb5 {[%emt 0:00:31]} Rxf4 {[%emt 0:00:18]} 38. Bc6 {[%emt 0:00:12]} Rb8 {[%emt 0:01:35]} 39. Ra4 {[%emt 0:00:43]} Rf5+ {[%emt 0:00:47]} 40. Ka6 {[%emt 0:00:17]} b5 {[%emt 0:04:29]} 41. Ra5 {[%emt 0:00:53]} Rf4 {[%emt 0:00:24]} 42. Ka7 {[%emt 0:00:29]} Rc8 {[%emt 0:00:42]} 43. Kb7 {[%emt 0:00:33]} Rxc6 {[%emt 0:00:20]} 44. Kxc6 {[%emt 0:00:28]} Rxb4 {[%emt 0:00:06]} 45. Kc5 {[%emt 0:00:08]} Rb1 {[%emt 0:00:38]} 46. Ra2 {[%emt 0:00:16]} b4 {[%emt 0:00:35]} 47. Rf2+ {[%emt 0:00:24]} Ke7 {[%emt 0:00:11]} 48. Kc4 {[%emt 0:00:08]} b3 {[%emt 0:00:11]} 49. Kc3 {[%emt 0:00:19]} g5 {[%emt 0:00:48]} 50. Rh2 {[%emt 0:00:21]} Kf6 {[%emt 0:00:45]} 51. Rxh7 {[%emt 0:00:08]} g4 {[%emt 0:00:28]} 52. Rh8 {[%emt 0:00:48]} e5 {[%emt 0:03:18]} 53. Rf8+ {[%emt 0:01:52]} Kg5 {[%emt 0:00:18]} 54. Re8 {[%emt 0:00:34]} Kf4 {[%emt 0:00:21]} 55. Rf8+ {[%emt 0:00:13]} Ke4 {[%emt 0:00:31]} 56. Rg8 {[%emt 0:00:35]} Kf3 {[%emt 0:01:01]} 57. Rf8+ {[%emt 0:00:15]} Kg2 {[%emt 0:02:01]} 58. Re8 {[%emt 0:00:33]} Re1 {[%emt 0:01:41]} 59. Kxb3 {[%emt 0:00:15]} g3 {[%emt 0:00:09]} 60. Kc2 {[%emt 0:01:22]} e4 {[%emt 0:00:54]} 61. Kd2 {[%emt 0:00:53]} Rf1 {[%emt 0:00:17]} 62. Ke2 {[%emt 0:08:12]} Rf2+ {[%emt 0:01:06]} 63. Ke1 {[%emt 0:00:24]} Kg1 {[%emt 0:01:50]} 64. Rxe4 {[%emt 0:02:29]} g2 {[%emt 0:00:35]} 65. Rh4 {[%emt 0:01:27]} Rf3 {[%emt 0:01:14]} 66. Ke2 {[%emt 0:01:21]} Rf6 {[%emt 0:00:43]} 67. Rh8 {[%emt 0:04:37]} Re6+ {[%emt 0:01:42]} 68. Kd2 {[%emt 0:01:35]} Rf6 {[%emt 0:01:06]} 69. Ke2 {[%emt 0:01:02]} Rf5 {[%emt 0:00:15]} 70. Rh7 {[%emt 0:03:36]} Rf4 {[%emt 0:00:24]} 71. Rh8 {[%emt 0:00:53]} Re4+ {[%emt 0:01:32]} 72. Kd3 {[%emt 0:03:56]} Kf2 {[%emt 0:02:18]} 73. Rf8+ {[%emt 0:01:14]} Ke1 {[%emt 0:00:33]} 74. Rg8 {[%emt 0:03:22]} Re2 {[%emt 0:00:17]} 75. Ra8 {[%emt 0:01:47]} Rd2+ {[%emt 0:00:40]} 76. Kc3 {[%emt 0:01:23]} g1=Q {[%emt 0:00:19]} 0-1